fUST/lending_fUST_20250303
["ID","MTS","AMOUNT","RATE_DAILY","PERIOD"]
[355166938,1740941446994,-587.0,0.00022597,2]
[355166939,1740941447005,-784.84,0.00022636,2]
[355166940,1740941447015,-999.55,0.00022636,2]
[355166941,1740941447026,-500.0,0.00022636,2]
[355166942,1740941447036,-500.0,0.00022636,2]
[355166943,1740941447047,-1010.46,0.00022636,2]
[355166944,1740941447058,-1053.76,0.00022636,2]
[355166945,1740941447068,-794.97,0.00022636,2]
[355166946,1740941447079,-500.0,0.00022636,2]
[355166947,1740941447089,-500.0,0.00022636,2]
[355166948,1740941447100,-500.0,0.00022636,2]
[355166949,1740941447110,-2374.49,0.00022636,2]
[355166950,1740941447121,-646.32,0.00022636,2]
[355166951,1740941447143,-719.24,0.00022637,2]
[355166952,1740941447154,-500.0,0.00022637,2]
[355166953,1740941447165,-500.0,0.00022637,2]
[355166954,1740941447177,-746.4,0.00022637,2]
[355166955,1740941447190,-499.47402109,0.00022637,2]
[355166956,1740941447200,-500.0,0.00022638,2]
[355166957,1740941447211,-500.0,0.00022638,2]
[355166958,1740941447223,-500.0,0.00022638,2]
[355166959,1740941447232,-418.00805935,0.00022638,2]
[355166960,1740941447243,-588.42,0.00022638,2]
[355166961,1740941447253,-500.0,0.00022638,2]
[355166962,1740941447266,-4161.00031565,0.00022638,2]
[355166963,1740941447279,-2634.23999976,0.00022638,2]
[355167014,1740942638432,-2465.47048717,0.00020265,2]
[355167047,1740942640611,-1267.42420046,0.00020265,2]
[355167048,1740942640621,-103.71502754,0.00020322,2]
[355167049,1740942640640,-396.28497246,0.00020322,2]
[355167050,1740942640650,-500.0,0.00020322,2]
[355167051,1740942640659,-561.15826214,0.00020322,2]
[355167052,1740942640670,-500.0,0.00020322,2]
[355167053,1740942640680,-227.73882755,0.00020322,2]
[355167054,1740942640689,-500.0,0.00020322,2]
[355167055,1740942640699,-500.0,0.00020322,2]
[355167056,1740942640711,-300.0,0.00020322,2]
[355167057,1740942640721,-24900.0,0.00020323,2]
[355167058,1740942640732,-388.2641667,0.00020443,2]
[355167059,1740942640741,-555.955815,0.00020707,2]
[355167060,1740942640751,-10000.0,0.00020842,2]
[355167062,1740942640761,-250.0,0.00021599,2]
[355167064,1740942640771,-200.0,0.00021653,2]
[355167065,1740942640780,-220.0,0.00021653,2]
[355167066,1740942640790,-242.0,0.00021653,2]
[355167067,1740942640800,-266.2,0.00021653,2]
[355167068,1740942640810,-292.82,0.00021653,2]
[355167069,1740942640819,-322.102,0.00021653,2]
[355167070,1740942640829,-400.0,0.00021653,2]
[355167071,1740942640839,-3000.0,0.000219,2]
[355167072,1740942640848,-4177.93678791,0.000219,3]
[355167073,1740942640858,-3000.0,0.0002191,2]
[355167074,1740942640867,-500.0,0.00021917,2]
[355167075,1740942640878,-500.0,0.00021917,2]
[355167076,1740942640887,-3000.0,0.0002192,2]
[355167077,1740942640897,-3000.0,0.0002193,2]
[355167078,1740942640906,-187.20708028,0.00021939,2]
[355167079,1740942640916,-3000.0,0.0002194,2]
[355167080,1740942640926,-3000.0,0.0002195,2]
[355167081,1740942640936,-3000.0,0.0002196,2]
[355167082,1740942640945,-500.0,0.00021967,2]
[355167083,1740942640955,-495.0670086,0.00021967,2]
[355167084,1740942640965,-484.38851429,0.00021967,2]
[355167085,1740942640975,-3000.0,0.0002197,2]
[355167086,1740942640985,-3000.0,0.0002198,2]
[355167087,1740942640995,-3000.0,0.0002199,2]
[355167088,1740942641005,-3000.0,0.00022,2]
[355167089,1740942641014,-948.0,0.00022,2]
[355167090,1740942641023,-3000.0,0.0002201,2]
[355167091,1740942641037,-3000.0,0.0002202,2]
[355167092,1740942641050,-3000.0,0.0002203,2]
[355167093,1740942641063,-3520.766067,0.0002204,2]
[355167094,1740942641077,-420.0,0.00022121,2]
[355167095,1740942641089,-719.43,0.00022361,2]
[355167096,1740942641103,-916.25,0.00022361,2]
[355167097,1740942641115,-500.0,0.00022361,2]
[355167098,1740942641126,-781.33,0.00022361,2]
[355167099,1740942641136,-659.3,0.00022361,2]
[355167100,1740942641147,-500.0,0.00022361,2]
[355167101,1740942641160,-926.26,0.00022361,2]
[355167102,1740942641172,-512.16,0.00022361,2]
[355167103,1740942641183,-500.0,0.00022361,2]
[355167104,1740942641195,-965.94,0.00022361,2]
[355167105,1740942641206,-577.72,0.00022361,2]
[355167106,1740942641218,-728.72,0.00022361,2]
[355167107,1740942641229,-500.0,0.00022361,2]
[355167108,1740942641241,-500.0,0.00022361,2]
[355167109,1740942641253,-500.0,0.00022361,2]
[355167110,1740942641265,-684.2,0.00022361,2]
[355167111,1740942641276,-2176.61,0.00022361,2]
[355167112,1740942641288,-500.0,0.00022361,2]
[355167113,1740942641300,-221.75019229,0.00022362,2]
[355167114,1740942641312,-197.96028862,0.00022362,2]
[355167115,1740942641324,-500.0,0.00022362,2]
[355167116,1740942641336,-500.0,0.00022362,2]
[355167117,1740942641347,-500.0,0.00022362,2]
[355167118,1740942641358,-500.0,0.00022362,2]
[355167119,1740942641369,-500.0,0.00022362,2]
[355167120,1740942641381,-500.0,0.00022362,2]
[355167121,1740942641392,-500.0,0.00022362,2]
[355167122,1740942641403,-328.59,0.00022362,2]
[355167123,1740942641414,-1565.37,0.00022362,2]
[355167124,1740942641427,-539.39,0.00022362,2]
[355167125,1740942641437,-500.0,0.00022362,2]
[355167126,1740942641450,-500.0,0.00022362,2]
[355167127,1740942641463,-500.0,0.00022362,2]
[355167128,1740942641475,-500.0,0.00022362,2]
[355167129,1740942641486,-14013.05,0.00022362,2]
[355167130,1740942641497,-500.0,0.00022362,2]
[355167131,1740942641509,-500.0,0.00022362,2]
[355167132,1740942641519,-1071.06,0.00022362,2]
[355167133,1740942641529,-500.0,0.00022362,2]
[355167134,1740942641539,-1175.43,0.00022362,2]
[355167135,1740942641550,-500.0,0.00022362,2]
[355167136,1740942641561,-500.0,0.00022362,2]
[355167137,1740942641571,-500.0,0.00022362,2]
[355167138,1740942641583,-500.0,0.00022362,2]
[355167139,1740942641595,-500.0,0.00022363,2]
[355167140,1740942641606,-500.0,0.00022363,2]
[355167141,1740942641618,-500.0,0.00022363,2]
[355167142,1740942641630,-500.0,0.00022363,2]
[355167143,1740942641643,-500.0,0.00022363,2]
[355167144,1740942641654,-271.02,0.00022363,2]
[355167145,1740942641667,-500.0,0.00022363,2]
[355167146,1740942641679,-432.43,0.00022363,2]
[355167147,1740942641691,-500.0,0.00022363,2]
[355167148,1740942641703,-500.0,0.00022363,2]
[355167149,1740942641717,-500.0,0.00022364,2]
[355167150,1740942641728,-167.92087357,0.00022364,2]
[355167151,1740942641741,-719.43,0.00022635,2]
[355167152,1740942641752,-916.25,0.00022635,2]
[355167153,1740942641762,-500.0,0.00022635,2]
[355167154,1740942641772,-781.33,0.00022635,2]
[355167155,1740942641782,-659.3,0.00022635,2]
[355167156,1740942641793,-500.0,0.00022635,2]
[355167157,1740942641802,-926.26,0.00022635,2]
[355167158,1740942641813,-512.16,0.00022635,2]
[355167159,1740942641823,-500.0,0.00022635,2]
[355167160,1740942641835,-965.94,0.00022635,2]
[355167161,1740942641847,-728.72,0.00022635,2]
[355167162,1740942641859,-500.0,0.00022635,2]
[355167163,1740942641872,-240.49,0.00022635,2]
[355167164,1740942641884,-500.0,0.00022635,2]
[355167165,1740942641896,-684.2,0.00022635,2]
[355167166,1740942641907,-2176.61,0.00022635,2]
[355167167,1740942641917,-500.0,0.00022635,2]
[355167168,1740942641928,-255.24972345,0.00022636,2]
[355167169,1740942641939,-500.0,0.00022636,2]
[355167170,1740942641950,-500.0,0.00022636,2]
[355167171,1740942641963,-1565.37,0.00022636,2]
[355167172,1740942641973,-539.39,0.00022636,2]
[355167173,1740942641984,-500.0,0.00022636,2]
[355167174,1740942641996,-500.0,0.00022636,2]
[355167175,1740942642007,-500.0,0.00022636,2]
[355167176,1740942642019,-14013.05,0.00022636,2]
[355167177,1740942642030,-500.0,0.00022636,2]
[355167178,1740942642040,-500.0,0.00022636,2]
[355167179,1740942642051,-1071.06,0.00022636,2]
[355167180,1740942642061,-500.0,0.00022636,2]
[355167181,1740942642071,-1175.43,0.00022636,2]
[355167182,1740942642082,-500.0,0.00022636,2]
[355167183,1740942642093,-500.0,0.00022636,2]
[355167184,1740942642105,-500.0,0.00022636,2]
[355167185,1740942642115,-500.0,0.00022637,2]
[355167186,1740942642126,-500.0,0.00022637,2]
[355167187,1740942642145,-500.0,0.00022637,2]
[355167188,1740942642156,-719.43,0.00022909,2]
[355167189,1740942642167,-916.25,0.00022909,2]
[355167190,1740942642179,-500.0,0.00022909,2]
[355167191,1740942642191,-781.33,0.00022909,2]
[355167192,1740942642202,-659.3,0.00022909,2]
[355167193,1740942642214,-500.0,0.00022909,2]
[355167194,1740942642226,-926.26,0.00022909,2]
[355167195,1740942642237,-512.16,0.00022909,2]
[355167196,1740942642248,-500.0,0.00022909,2]
[355167197,1740942642264,-965.94,0.00022909,2]
[355167198,1740942642278,-728.72,0.00022909,2]
[355167199,1740942642294,-500.0,0.00022909,2]
[355167200,1740942642305,-500.0,0.00022909,2]
[355167201,1740942642317,-684.2,0.00022909,2]
[355167202,1740942642329,-2176.61,0.00022909,2]
[355167203,1740942642342,-500.0,0.00022909,2]
[355167204,1740942642353,-500.0,0.0002291,2]
[355167205,1740942642365,-500.0,0.0002291,2]
[355167206,1740942642376,-1565.37,0.0002291,2]
[355167207,1740942642387,-539.39,0.0002291,2]
[355167208,1740942642397,-637.65065371,0.0002291,2]
[355167209,1740942642408,-500.0,0.0002291,2]
[355167210,1740942642419,-500.0,0.0002291,2]
[355167211,1740942642430,-14013.05,0.0002291,2]
[355167212,1740942642441,-500.0,0.0002291,2]
[355167213,1740942642452,-500.0,0.0002291,2]
[355167214,1740942642463,-1071.06,0.0002291,2]
[355167215,1740942642474,-500.0,0.0002291,2]
[355167216,1740942642485,-1175.43,0.0002291,2]
[355167217,1740942642496,-500.0,0.0002291,2]
[355167218,1740942642507,-500.0,0.0002291,2]
[355167219,1740942642518,-500.0,0.00022911,2]
[355167220,1740942642529,-500.0,0.00022911,2]
[355167221,1740942642539,-500.0,0.00022911,2]
[355167222,1740942642551,-387.74009816,0.00022986,2]
[355167223,1740942642562,-500.0,0.00023073,2]
[355167224,1740942642572,-383.72100587,0.00023073,2]
[355167225,1740942642584,-500.0,0.00023073,2]
[355167226,1740942642594,-500.0,0.00023073,2]
[355167227,1740942642606,-358.99666725,0.00023073,2]
[355167228,1740942642617,-500.0,0.00023073,2]
[355167229,1740942642630,-500.0,0.00023073,2]
[355167230,1740942642641,-44364.46391741,0.00023086,5]
[355167231,1740942642652,-108557.06397634,0.00023086,5]
[355167232,1740942642663,-151.0,0.00023086,7]
[355167233,1740942642676,-151.0,0.00023086,7]
[355167234,1740942642687,-213.56812,0.00023086,7]
[355167235,1740942642698,-151.0,0.00023086,7]
[355167236,1740942642713,-167.010954,0.00023086,7]
[355167237,1740942642725,-167.010954,0.00023086,7]
[355167238,1740942642736,-261.694641,0.00023086,7]
[355167239,1740942642748,-261.694641,0.00023086,7]
[355167240,1740942642759,-151.0,0.00023086,7]
[355167241,1740942642772,-151.0,0.00023086,7]
[355167243,1740942642783,-151.0,0.00023086,7]
[355167245,1740942642795,-151.067604,0.00023086,7]
[355167247,1740942642807,-151.0,0.00023086,7]
[355167248,1740942642819,-188.57834,0.00023086,7]
[355167249,1740942642830,-188.57834,0.00023086,7]
[355167250,1740942642843,-151.0,0.00023086,7]
[355167251,1740942642854,-151.0,0.00023086,7]
[355167253,1740942642867,-151.0,0.00023086,7]
[355167255,1740942642878,-151.0,0.00023086,7]
[355167257,1740942642890,-151.0,0.00023086,7]
[355167259,1740942642901,-151.0,0.00023086,7]
[355167262,1740942642912,-151.0,0.00023086,7]
[355167263,1740942642924,-222000.0,0.00023086,2]
[355167298,1740942643126,-160.0,0.00023099,2]
[355167300,1740942643136,-160.0,0.0002317,2]
[355167301,1740942643146,-719.43,0.00023183,2]
[355167302,1740942643156,-916.25,0.00023183,2]
[355167304,1740942643166,-500.0,0.00023183,2]
[355167305,1740942643176,-781.33,0.00023183,2]
[355167306,1740942643186,-659.3,0.00023183,2]
[355167307,1740942643196,-500.0,0.00023183,2]
[355167308,1740942643206,-926.26,0.00023183,2]
[355167309,1740942643216,-512.16,0.00023183,2]
[355167311,1740942643225,-500.0,0.00023183,2]
[355167313,1740942643235,-965.94,0.00023183,2]
[355167314,1740942643245,-728.72,0.00023183,2]
[355167315,1740942643254,-500.0,0.00023183,2]
[355167316,1740942643263,-684.2,0.00023183,2]
[355167317,1740942643273,-2176.61,0.00023183,2]
[355167318,1740942643283,-500.0,0.00023183,2]
[355167319,1740942643292,-500.0,0.00023184,2]
[355167320,1740942643302,-496.87,0.00023184,2]
[355167321,1740942643312,-1565.37,0.00023184,2]
[355167322,1740942643321,-539.39,0.00023184,2]
[355167323,1740942643331,-500.0,0.00023184,2]
[355167324,1740942643340,-500.0,0.00023184,2]
[355167325,1740942643350,-14013.05,0.00023184,2]
[355167326,1740942643359,-500.0,0.00023184,2]
[355167327,1740942643369,-500.0,0.00023184,2]
[355167328,1740942643379,-1071.06,0.00023184,2]
[355167329,1740942643388,-500.0,0.00023184,2]
[355167330,1740942643398,-1175.43,0.00023184,2]
[355167331,1740942643408,-500.0,0.00023184,2]
[355167332,1740942643418,-500.0,0.00023184,2]
[355167333,1740942643428,-500.0,0.00023185,2]
[355167334,1740942643437,-500.0,0.00023185,2]
[355167335,1740942643447,-500.0,0.00023185,2]
[355167336,1740942643458,-719.43,0.00023457,2]
[355167337,1740942643468,-916.25,0.00023457,2]
[355167338,1740942643478,-500.0,0.00023457,2]
[355167339,1740942643487,-781.33,0.00023457,2]
[355167340,1740942643497,-659.3,0.00023457,2]
[355167341,1740942643506,-500.0,0.00023457,2]
[355167342,1740942643516,-926.26,0.00023457,2]
[355167343,1740942643526,-512.16,0.00023457,2]
[355167344,1740942643535,-500.0,0.00023457,2]
[355167345,1740942643545,-965.94,0.00023457,2]
[355167346,1740942643555,-728.72,0.00023457,2]
[355167347,1740942643566,-500.0,0.00023457,2]
[355167348,1740942643576,-684.2,0.00023457,2]
[355167349,1740942643586,-2176.61,0.00023457,2]
[355167350,1740942643596,-500.0,0.00023457,2]
[355167353,1740942643606,-500.0,0.00023458,2]
[355167355,1740942643616,-1565.37,0.00023458,2]
[355167357,1740942643627,-539.39,0.00023458,2]
[355167358,1740942643647,-500.0,0.00023458,2]
[355167359,1740942643666,-500.0,0.00023458,2]
[355167360,1740942643681,-14013.05,0.00023458,2]
[355167361,1740942643690,-500.0,0.00023458,2]
[355167362,1740942643700,-500.0,0.00023458,2]
[355167363,1740942643710,-1071.06,0.00023458,2]
[355167364,1740942643719,-500.0,0.00023458,2]
[355167365,1740942643729,-1175.43,0.00023458,2]
[355167366,1740942643738,-500.0,0.00023458,2]
[355167367,1740942643749,-174.03,0.00023458,2]
[355167368,1740942643759,-500.0,0.00023459,2]
[355167369,1740942643768,-500.0,0.00023459,2]
[355167370,1740942643778,-500.0,0.00023459,2]
[355167371,1740942643788,-160.0,0.00023639,2]
[355167372,1740942643797,-19629.85965445,0.00023639,2]
[355167373,1740942643807,-163.03,0.000237,7]
[355167374,1740942643818,-387.74009814,0.00023715,2]
[355167375,1740942643828,-719.43,0.00023731,2]
[355167376,1740942643838,-916.25,0.00023731,2]
[355167377,1740942643848,-500.0,0.00023731,2]
[355167378,1740942643858,-781.33,0.00023731,2]
[355167379,1740942643868,-659.3,0.00023731,2]
[355167380,1740942643878,-500.0,0.00023731,2]
[355167381,1740942643887,-926.26,0.00023731,2]
[355167382,1740942643897,-512.16,0.00023731,2]
[355167383,1740942643907,-500.0,0.00023731,2]
[355167384,1740942643917,-965.94,0.00023731,2]
[355167385,1740942643926,-728.72,0.00023731,2]
[355167386,1740942643936,-292.38,0.00023731,2]
[355167387,1740942643946,-684.2,0.00023731,2]
[355167388,1740942643955,-2176.61,0.00023731,2]
[355167389,1740942643969,-500.0,0.00023731,2]
[355167390,1740942643978,-500.0,0.00023732,2]
[355167391,1740942643989,-1565.37,0.00023732,2]
[355167392,1740942643999,-539.39,0.00023732,2]
[355167393,1740942644009,-645.4212693,0.00023732,2]
[355167394,1740942644018,-500.0,0.00023732,2]
[355167395,1740942644027,-14013.05,0.00023732,2]
[355167396,1740942644037,-500.0,0.00023732,2]
[355167397,1740942644046,-384.32630838,0.00023732,2]
[355167398,1740942644055,-1071.06,0.00023732,2]
[355167399,1740942644065,-500.0,0.00023732,2]
[355167400,1740942644075,-1175.43,0.00023732,2]
[355167401,1740942644084,-500.0,0.00023732,2]
[355167402,1740942644094,-151.0,0.00023732,7]
[355167403,1740942644103,-500.0,0.00023733,2]
[355167404,1740942644113,-500.0,0.00023733,2]
[355167405,1740942644122,-500.0,0.00023733,2]
[355167406,1740942644132,-151.0,0.00023733,7]
[355167407,1740942644141,-151.0,0.00023734,7]
[355167408,1740942644150,-151.0,0.00023734,7]
[355167409,1740942644160,-151.0,0.00023734,7]
[355167410,1740942644170,-151.0,0.00023734,7]
[355167411,1740942644179,-151.0,0.00023734,7]
[355167412,1740942644189,-151.0,0.00023734,7]
[355167413,1740942644199,-151.0,0.00023734,7]
[355167414,1740942644211,-151.0,0.00023734,7]
[355167415,1740942644220,-151.0,0.00023773,7]
[355167416,1740942644230,-151.0,0.00023833,7]
[355167417,1740942644240,-151.0,0.00023833,7]
[355167418,1740942644249,-151.0,0.00023833,7]
[355167419,1740942644259,-151.0,0.00023833,7]
[355167420,1740942644269,-167.010954,0.00023833,7]
[355167421,1740942644279,-167.010954,0.00023833,7]
[355167422,1740942644289,-261.694641,0.00023833,7]
[355167423,1740942644299,-261.694641,0.00023833,7]
[355167424,1740942644309,-151.0,0.00023833,7]
[355167425,1740942644318,-151.0,0.00023833,7]
[355167426,1740942644328,-188.57834,0.00023833,7]
[355167427,1740942644338,-188.57834,0.00023833,7]
[355167428,1740942644348,-10340.610617,0.00024,3]
[355167429,1740942644358,-160.0,0.00024,3]
[355167430,1740942644367,-11652.23839749,0.00024,3]
[355167431,1740942644384,-7977.62125696,0.00024,3]
[355167432,1740942644394,-160.0,0.00024,3]
[355167433,1740942644403,-719.43,0.00024005,2]
[355167434,1740942644413,-916.25,0.00024005,2]
[355167435,1740942644423,-500.0,0.00024005,2]
[355167436,1740942644433,-781.33,0.00024005,2]
[355167437,1740942644443,-659.3,0.00024005,2]
[355167438,1740942644452,-500.0,0.00024005,2]
[355167439,1740942644463,-926.26,0.00024005,2]
[355167440,1740942644473,-512.16,0.00024005,2]
[355167441,1740942644483,-500.0,0.00024005,2]
[355167442,1740942644493,-965.94,0.00024005,2]
[355167443,1740942644503,-728.72,0.00024005,2]
[355167444,1740942644512,-684.2,0.00024005,2]
[355167445,1740942644522,-2176.61,0.00024005,2]
[355167446,1740942644532,-500.0,0.00024005,2]
[355167447,1740942644541,-500.0,0.00024006,2]
[355167448,1740942644551,-151.0,0.00024006,7]
[355167449,1740942644560,-1565.37,0.00024006,2]
[355167450,1740942644570,-539.39,0.00024006,2]
[355167451,1740942644579,-151.0,0.00024006,7]
[355167452,1740942644589,-151.0,0.00024006,7]
[355167453,1740942644598,-500.0,0.00024006,2]
[355167454,1740942644608,-14013.05,0.00024006,2]
[355167455,1740942644617,-500.0,0.00024006,2]
[355167456,1740942644628,-1071.06,0.00024006,2]
[355167457,1740942644640,-500.0,0.00024006,2]
[355167458,1740942644650,-1175.43,0.00024006,2]
[355167459,1740942644660,-500.0,0.00024006,2]
[355167460,1740942644670,-500.0,0.00024007,2]
[355167461,1740942644679,-500.0,0.00024007,2]
[355167462,1740942644689,-614.88,0.00024007,2]
[355167463,1740942644699,-587.0,0.00024079,2]
[355167464,1740942644711,-719.43,0.00024279,2]
[355167465,1740942644721,-916.25,0.00024279,2]
[355167466,1740942644731,-500.0,0.00024279,2]
[355167467,1740942644740,-781.33,0.00024279,2]
[355167468,1740942644750,-659.3,0.00024279,2]
[355167469,1740942644760,-500.0,0.00024279,2]
[355167470,1740942644769,-926.26,0.00024279,2]
[355167471,1740942644779,-512.16,0.00024279,2]
[355167472,1740942644789,-500.0,0.00024279,2]
[355167473,1740942644799,-965.94,0.00024279,2]
[355167474,1740942644809,-728.72,0.00024279,2]
[355167475,1740942644819,-684.2,0.00024279,2]
[355167476,1740942644830,-2176.61,0.00024279,2]
[355167477,1740942644840,-500.0,0.00024279,2]
[355167478,1740942644850,-500.0,0.0002428,2]
[355167479,1740942644859,-1565.37,0.0002428,2]
[355167480,1740942644869,-539.39,0.0002428,2]
[355167481,1740942644879,-500.0,0.0002428,2]
[355167482,1740942644889,-14013.05,0.0002428,2]
[355167483,1740942644898,-500.0,0.0002428,2]
[355167484,1740942644908,-1071.06,0.0002428,2]
[355167485,1740942644917,-500.0,0.0002428,2]
[355167486,1740942644928,-1175.43,0.0002428,2]
[355167487,1740942644938,-500.0,0.0002428,2]
[355167488,1740942644948,-500.0,0.00024281,2]
[355167489,1740942644957,-500.0,0.00024281,2]
[355167490,1740942644969,-387.74009814,0.00024443,2]
[355167491,1740942644979,-719.43,0.00024553,2]
[355167492,1740942644989,-916.25,0.00024553,2]
[355167493,1740942644999,-500.0,0.00024553,2]
[355167494,1740942645010,-781.33,0.00024553,2]
[355167495,1740942645020,-659.3,0.00024553,2]
[355167496,1740942645030,-500.0,0.00024553,2]
[355167497,1740942645040,-926.26,0.00024553,2]
[355167498,1740942645050,-512.16,0.00024553,2]
[355167499,1740942645060,-500.0,0.00024553,2]
[355167500,1740942645070,-965.94,0.00024553,2]
[355167501,1740942645079,-728.72,0.00024553,2]
[355167502,1740942645089,-684.2,0.00024553,2]
[355167503,1740942645099,-2176.61,0.00024553,2]
[355167504,1740942645108,-500.0,0.00024553,2]
[355167505,1740942645118,-272.866622,0.00024554,7]
[355167506,1740942645128,-214.72858445,0.00024554,2]
[355167507,1740942645138,-1565.37,0.00024554,2]
[355167508,1740942645147,-539.39,0.00024554,2]
[355167509,1740942645157,-151.236143,0.00024554,7]
[355167510,1740942645167,-500.0,0.00024554,2]
[355167511,1740942645177,-14013.05,0.00024554,2]
[355167512,1740942645186,-151.0,0.00024554,7]
[355167513,1740942645195,-151.0,0.00024554,7]
[355167514,1740942645205,-500.0,0.00024554,2]
[355167515,1740942645215,-1071.06,0.00024554,2]
[355167516,1740942645225,-500.0,0.00024554,2]
[355167517,1740942645234,-1175.43,0.00024554,2]
[355167518,1740942645243,-500.0,0.00024554,2]
[355167519,1740942645253,-151.0,0.00024554,7]
[355167520,1740942645262,-151.0,0.00024555,7]
[355167521,1740942645271,-151.0,0.00024555,7]
[355167522,1740942645281,-151.0,0.00024555,7]
[355167523,1740942645290,-151.0,0.00024555,7]
[355167524,1740942645300,-151.0,0.00024555,7]
[355167525,1740942645310,-500.0,0.00024555,2]
[355167526,1740942645320,-500.0,0.00024555,2]
[355167527,1740942645329,-261.694641,0.00024555,7]
[355167528,1740942645339,-261.694641,0.00024555,7]
[355167529,1740942645349,-160.0,0.00024555,7]
[355167530,1740942645358,-151.0,0.00024655,7]
[355167531,1740942645367,-151.0,0.00024655,7]
[355167532,1740942645377,-167.010954,0.00024655,7]
[355167533,1740942645387,-167.010954,0.00024655,7]
[355167534,1740942645396,-151.0,0.00024655,7]
[355167535,1740942645406,-151.0,0.00024655,7]
[355167536,1740942645416,-188.57834,0.00024655,7]
[355167537,1740942645426,-188.57834,0.00024655,7]
[355167538,1740942645435,-151.0,0.00024656,2]
[355167539,1740942645445,-151.0,0.00024657,7]
[355167540,1740942645454,-500.0,0.00024657,2]
[355167541,1740942645466,-500.0,0.00024657,2]
[355167542,1740942645475,-380.0,0.00024658,2]
[355167543,1740942645485,-151.0,0.00024658,7]
[355167544,1740942645495,-151.0,0.00024658,7]
[355167545,1740942645505,-151.0,0.00024658,7]
[355167546,1740942645514,-151.0,0.00024658,7]
[355167547,1740942645524,-204.08624,0.00024658,7]
[355167548,1740942645533,-151.0,0.00024658,7]
[355167549,1740942645543,-151.0,0.00024658,7]
[355167550,1740942645553,-151.0,0.00024658,7]
[355167551,1740942645563,-151.0,0.00024658,7]
[355167552,1740942645573,-151.0,0.00024658,7]
[355167553,1740942645583,-151.0,0.00024658,7]
[355167554,1740942645592,-151.0,0.00024658,7]
[355167555,1740942645602,-151.0,0.00024658,7]
[355167556,1740942645612,-151.0,0.00024658,7]
[355167557,1740942645621,-167.010954,0.00024658,7]
[355167558,1740942645632,-167.010954,0.00024658,7]
[355167559,1740942645643,-261.694641,0.00024658,7]
[355167560,1740942645653,-261.694641,0.00024658,7]
[355167561,1740942645663,-151.0,0.00024658,7]
[355167562,1740942645674,-151.0,0.00024658,7]
[355167563,1740942645683,-151.0,0.00024658,7]
[355167564,1740942645693,-188.57834,0.00024658,7]
[355167565,1740942645702,-188.57834,0.00024658,7]
[355167566,1740942645711,-151.0,0.00024658,7]
[355167567,1740942645724,-270.941788,0.00024658,7]
[355167568,1740942645734,-151.0,0.00024658,7]
[355167569,1740942645744,-151.0,0.00024658,7]
[355167570,1740942645753,-500.0,0.00024658,2]
[355167571,1740942645763,-945.02255431,0.00024658,2]
[355167572,1740942645773,-945.02255431,0.00024658,2]